{"text_format":"1","workbook":"xlsx","n_sheets":1,"sheets":["ورقة1"],"not_rendered":{"charts":0,"images":0,"macros":1,"external_links":0,"defined_names":0,"comments":0,"pivot_tables":0},"unopened":[],"bounds":{"document_bytes":16777216,"sheet_cells":100000,"rows_first":2000,"rows_last":500,"rows_between":2000,"halvings":0,"cell_chars":16384,"cell_head_chars":4096},"cells_cut":0,"cells_raw":0,"read":"whole","date_system":"1900"}

{"sheet":"ورقة1","index":0,"n_rows":38,"n_cols":3,"rows_kept":38,"cut":false,"hidden":false,"merged":[]}
[]
[]
[]
[null,"محمد1",{"$f":"NumberOut(B4)","v":"محمد"}]
[null,"محمد2",{"$f":"NumberOut(B5)","v":"محمد"}]
[null,"محمد3","محمد"]
[null,"محمد4","محمد"]
[null,"محمد5","محمد"]
[null,"محمد6","محمد"]
[null,"محمد7","محمد"]
[null,"محمد8","محمد"]
[null,"علي440","علي"]
[null,"علي441","علي"]
[null,"علي442","علي"]
[null,"علي443","علي"]
[null,"علي444","علي"]
[null,"علي445","علي"]
[null,"علي446","علي"]
[null,"علي447","علي"]
[null,"علي448","علي"]
[null,"احمد2","احمد"]
[null,"احمد3","احمد"]
[null,"احمد4","احمد"]
[null,"احمد5","احمد"]
[null,"احمد6","احمد"]
[null,"إجتماعيات1","جتماعيات"]
[null,"إجتماعيات2","جتماعيات"]
[null,"إجتماعيات3","جتماعيات"]
[null,"اجتماعيات4","اجتماعيات"]
[null,"اجتماعيات5","اجتماعيات"]
[null,"ادب عربي1","ادبعربي"]
[null,"ادب عربي2","ادبعربي"]
[null,"ادب عربي3","ادبعربي"]
[null,"ادب عربي4","ادبعربي"]
[null,"ادب عربي5","ادبعربي"]
[null,"ادب عربي6","ادبعربي"]
[null,"ادب عربي7","ادبعربي"]
[null,"ادب عربي8","ادبعربي"]